bitfinex/quotes_BTCUSD_20250320
["timestamp","ask_amount","ask_price","bid_price","bid_amount"]
[1742436794481,0.497871,85914.0,85903.0,0.0001694]
[1742436794698,1.55028726,85914.0,85903.0,0.0001694]
[1742436794916,1.66663386,85914.0,85903.0,0.0001694]
[1742436795333,0.497894,85904.0,85903.0,0.0001694]
[1742436795509,0.52467291,85904.0,85903.0,0.0001694]
[1742436795746,0.59361951,85904.0,85903.0,0.0001694]
[1742436795919,0.59361951,85904.0,85903.0,0.00058753]
[1742436797198,0.31223806,85904.0,85903.0,0.00058753]
[1742436797430,0.45739806,85904.0,85903.0,0.00058753]
[1742436797609,0.45639806,85904.0,85903.0,0.00058753]
[1742436797832,0.44475806,85904.0,85903.0,0.00058753]
[1742436798030,0.44775806,85904.0,85903.0,0.00058753]
[1742436798235,0.48174363,85904.0,85903.0,0.00058753]
[1742436798438,0.39380215,85904.0,85903.0,0.00058753]
[1742436798645,0.39080215,85904.0,85903.0,0.00058753]
[1742436798798,0.40244215,85904.0,85903.0,0.00058753]
[1742436799135,0.40344215,85904.0,85903.0,0.00058753]
[1742436799367,0.40244215,85904.0,85903.0,0.00058753]
[1742436799905,0.416983,85904.0,85903.0,0.00058753]
[1742436800512,0.40501039,85904.0,85903.0,0.00058753]
[1742436801622,0.41001039,85904.0,85903.0,0.00058753]
[1742436802000,0.40501039,85904.0,85903.0,0.00058753]
[1742436802419,0.47397891,85904.0,85903.0,0.00058753]
[1742436802627,0.36695665,85904.0,85903.0,0.00058753]
[1742436802902,0.49955665,85904.0,85903.0,0.00058753]
[1742436803070,0.50255665,85904.0,85903.0,0.00058753]
[1742436803589,0.53074688,85904.0,85903.0,0.00058753]
[1742436803793,0.53374688,85904.0,85903.0,0.00058753]
[1742436803995,0.84170171,85904.0,85903.0,0.00058753]
[1742436804212,0.84370171,85904.0,85903.0,0.00058753]
[1742436804788,0.01423806,85904.0,85903.0,0.00058753]
[1742436804980,0.01423806,85904.0,85903.0,0.18684353]
[1742436805429,0.59463806,85904.0,85903.0,0.18684353]
[1742436805681,0.01477158,85904.0,85903.0,0.19848453]
[1742436805912,0.01377158,85904.0,85903.0,0.19848453]
[1742436806126,0.01377158,85904.0,85903.0,0.18684353]
[1742436806366,0.01377158,85904.0,85903.0,0.19848453]
[1742436806577,0.01177158,85904.0,85903.0,0.19848453]
[1742436807039,0.0008969,85911.0,85910.0,0.185241]
[1742436807273,0.01176381,85911.0,85910.0,0.185241]
[1742436807523,0.01176381,85911.0,85903.0,0.19848453]
[1742436807524,0.5794,85916.0,85908.0,0.186245]
[1742436807788,0.01255909,85915.0,85912.0,0.186234]
[1742436808636,0.02457613,85915.0,85912.0,0.186234]
[1742436809457,0.0001696,85913.0,85912.0,0.186234]
[1742436811902,0.0001696,85913.0,85912.0,0.18474811]
[1742436819114,0.02162136,85913.0,85912.0,0.19638711]
[1742436820403,0.02162136,85913.0,85911.0,0.011639]
[1742436820404,0.02162136,85913.0,85906.0,0.1326]
[1742436820405,0.011639,85912.0,85906.0,0.1326]
[1742436820776,0.0008969,85911.0,85906.0,0.1326]
[1742436820952,0.0008969,85912.0,85907.0,0.186247]
[1742436821358,0.0008969,85912.0,85908.0,0.186243]
[1742436821848,0.197889,85907.0,85903.0,0.00058753]
[1742436822114,0.0125369,85906.0,85903.0,0.00058753]
[1742436822347,0.52457127,85904.0,85903.0,0.00058753]
[1742436822573,1.10397127,85904.0,85903.0,0.00058753]
[1742436823055,1.47342309,85904.0,85903.0,0.00058753]
[1742436823545,1.50199067,85904.0,85903.0,0.00058753]
[1742436823783,1.50199067,85904.0,85903.0,5.3e-07]
[1742436823998,0.51743985,85902.0,85901.0,0.002]
[1742436824215,0.66241343,85902.0,85901.0,0.002]
[1742436824398,0.69020242,85902.0,85901.0,0.00208753]
[1742436825260,0.69520242,85902.0,85901.0,0.00208753]
[1742436825813,0.52981343,85902.0,85901.0,0.00208753]
[1742436826045,0.66541343,85902.0,85901.0,0.00208753]
[1742436826270,1.24489343,85902.0,85901.0,0.00208753]
[1742436826741,0.53281343,85902.0,85901.0,0.00208753]
[1742436826940,1.23035258,85902.0,85901.0,0.00208753]
[1742436827299,1.54030741,85902.0,85901.0,0.00208753]
[1742436827541,1.24030741,85902.0,85901.0,0.00208753]
[1742436827726,1.11170741,85902.0,85901.0,0.00208753]
[1742436827927,0.007,85902.0,85901.0,0.01372853]
[1742436828126,0.004,85902.0,85901.0,0.14159255]
[1742436828336,0.004,85902.0,85901.0,0.17784354]
[1742436828544,0.007,85902.0,85901.0,0.29741857]
[1742436828740,0.0001696,85913.0,85912.0,0.011639]
[1742436828939,0.0001696,85913.0,85912.0,0.010639]
[1742436829145,0.0001696,85913.0,85912.0,0.008639]
[1742436829577,0.0001696,85913.0,85912.0,0.007639]
[1742436830544,0.0001696,85913.0,85912.0,0.193876]
[1742436831360,0.0011696,85913.0,85912.0,0.193876]
[1742436833385,0.0011696,85913.0,85911.0,0.1326]
[1742436833822,0.1990456,85913.0,85911.0,0.1326]
[1742436834234,0.186237,85912.0,85911.0,0.1326]
[1742436834600,0.0001696,85913.0,85911.0,0.1346]
[1742436834802,0.0001696,85913.0,85911.0,0.320839]
[1742436834979,0.0001696,85913.0,85912.0,0.011639]
[1742436837303,0.0001696,85913.0,85912.0,0.013639]
[1742436838101,0.0001696,85913.0,85912.0,0.002]
[1742436838102,0.0118086,85913.0,85912.0,0.002]
[1742436838303,0.0001696,85913.0,85912.0,0.002]
[1742436841067,0.0118086,85913.0,85912.0,0.002]
[1742436841477,0.0127055,85913.0,85912.0,0.002]
[1742436842301,0.011639,85911.0,85905.0,0.186252]
[1742436842564,0.011639,85911.0,85906.0,0.197888]
[1742436843497,0.186237,85912.0,85907.0,0.197885]
[1742436844157,0.0127055,85913.0,85908.0,0.186244]
[1742436844361,0.0001696,85913.0,85912.0,0.002]
[1742436844544,0.0001696,85913.0,85912.0,0.013639]
[1742436844930,0.0001696,85913.0,85912.0,0.011639]
[1742436845675,0.0001696,85913.0,85912.0,0.0119782]
[1742436846063,0.0001696,85913.0,85912.0,0.0139782]
[1742436846441,0.0001696,85913.0,85912.0,0.0023392]
[1742436847052,0.1980426,85913.0,85912.0,0.0023392]
[1742436847841,0.1980426,85913.0,85912.0,0.0003392]
[1742436848043,0.1980426,85913.0,85912.0,0.0023392]
[1742436849404,0.0001696,85913.0,85912.0,0.0023392]
[1742436849839,0.0118086,85913.0,85912.0,0.0023392]
[1742436850040,0.02433381,85913.0,85912.0,0.0023392]
[1742436850495,0.02433381,85913.0,85912.0,0.0003392]
[1742436850924,0.02433381,85913.0,85912.0,0.0023392]
[1742436853356,0.0001696,85913.0,85912.0,0.0139782]
[1742436859938,0.0001696,85913.0,85912.0,0.0023392]
[1742436860515,0.0001696,85913.0,85912.0,0.0139782]
[1742436861944,0.0001696,85913.0,85912.0,0.0023392]
[1742436863640,0.0001696,85913.0,85912.0,0.0139782]
[1742436867499,0.0001696,85913.0,85912.0,0.01514206]
[1742436867703,0.0001696,85913.0,85912.0,0.06324206]
[1742436868178,0.0001696,85913.0,85912.0,0.0620782]
[1742436869683,0.0001696,85913.0,85912.0,0.063242]
[1742436871503,0.0001696,85913.0,85912.0,0.0023392]
[1742436871797,0.0001696,85913.0,85912.0,0.0139782]
[1742436873137,0.0001696,85913.0,85912.0,0.0023392]
[1742436873326,0.0118086,85913.0,85912.0,0.0023392]
[1742436873603,0.0127055,85913.0,85912.0,0.0023392]
[1742436874975,0.02433381,85913.0,85912.0,0.0023392]
[1742436876353,0.0127055,85913.0,85912.0,0.0023392]
[1742436878293,0.32433381,85913.0,85912.0,0.0023392]
[1742436878488,0.32343691,85913.0,85912.0,0.0023392]
[1742436878714,0.35844091,85913.0,85912.0,0.0023392]
[1742436879545,0.0001696,85913.0,85912.0,0.1865762]
[1742436879672,0.0031696,85913.0,85912.0,0.0003392]
[1742436879877,0.0040665,85913.0,85912.0,0.0003392]
[1742436880233,0.0031696,85913.0,85912.0,0.0119782]
[1742436880434,0.0001696,85913.0,85912.0,0.0119782]
[1742436880843,0.0011696,85913.0,85912.0,0.0119782]
[1742436881001,0.0001696,85913.0,85912.0,0.0119782]
[1742436882564,0.0001696,85913.0,85912.0,0.0139782]
[1742436890864,0.0001696,85913.0,85912.0,0.0023392]
[1742436891073,0.0001696,85913.0,85912.0,0.0139782]
[1742436891849,0.0001696,85913.0,85912.0,0.3971541]
[1742436892058,0.0001696,85913.0,85912.0,0.54309108]
[1742436892843,0.0001696,85913.0,85912.0,0.54109108]
[1742436893130,0.0011696,85913.0,85912.0,0.54109108]
[1742436893315,0.0011696,85913.0,85912.0,0.54309108]
[1742436894085,0.0011696,85913.0,85912.0,0.3327752]
[1742436894517,0.0001696,85913.0,85912.0,0.3327752]
[1742436895125,0.0011696,85913.0,85912.0,0.3327752]
[1742436895592,0.0001696,85913.0,85912.0,0.3327752]
[1742436895776,0.0001696,85913.0,85912.0,0.3307752]
[1742436895953,0.0001696,85913.0,85912.0,0.3337752]
[1742436896185,0.0011696,85913.0,85912.0,0.2062152]
[1742436896767,0.0001696,85913.0,85912.0,0.2012152]
[1742436896975,0.0001696,85913.0,85912.0,0.2062152]
[1742436901233,0.0001696,85913.0,85912.0,0.0083392]
[1742436901869,0.0001696,85913.0,85912.0,0.0033392]
[1742436902188,0.02343691,85913.0,85912.0,0.0033392]
[1742436902603,0.02433381,85913.0,85912.0,0.0033392]
[1742436902845,0.02433381,85913.0,85912.0,0.0003392]
[1742436903270,0.0010665,85913.0,85912.0,0.0003392]
[1742436903475,0.0001696,85913.0,85912.0,0.0003392]
[1742436904356,0.0001696,85913.0,85912.0,0.0119782]
[1742436904990,0.0118086,85913.0,85912.0,0.0003392]
[1742436905170,0.0127055,85913.0,85912.0,0.0003392]
[1742436905441,0.02433381,85913.0,85912.0,0.0003392]
[1742436907202,0.32433381,85913.0,85912.0,0.0003392]
[1742436907410,0.73203691,85913.0,85912.0,0.0003392]
[1742436908250,0.73203691,85913.0,85901.0,0.00242693]
[1742436908251,0.497899,85902.0,85901.0,0.00242693]
[1742436908456,1.22215258,85902.0,85901.0,0.00242693]
[1742436908884,1.2436743,85902.0,85901.0,0.00242693]
[1742436909299,1.1111543,85902.0,85901.0,0.00242693]
[1742436909508,0.60088172,85902.0,85901.0,0.00242693]
[1742436909908,0.02452172,85902.0,85901.0,0.01406793]
[1742436910110,0.003,85902.0,85901.0,0.00242693]
[1742436910316,0.014641,85902.0,85901.0,0.00242693]
[1742436910517,0.186249,85907.0,85901.0,0.00242693]
[1742436910742,0.001,85902.0,85901.0,0.20032793]
[1742436911368,0.001,85902.0,85901.0,0.33300793]
[1742436911655,0.02152231,85906.0,85905.0,0.197892]
[1742436912462,0.0001696,85913.0,85912.0,0.197876]
[1742436913645,0.0001696,85913.0,85910.0,0.186239]
[1742436913870,0.0001696,85913.0,85912.0,0.186237]
[1742436914287,0.0001696,85913.0,85910.0,0.186239]
[1742436914505,0.0001696,85913.0,85911.0,0.186237]
[1742436914728,0.0001696,85913.0,85911.0,0.197876]
[1742436914930,0.0001696,85913.0,85907.0,0.186246]
[1742436915165,0.197878,85912.0,85907.0,0.186246]
[1742436915398,0.0001696,85913.0,85910.0,0.186241]
[1742436915598,0.0001696,85913.0,85912.0,0.011639]
[1742436920427,0.0001696,85913.0,85912.0,0.013639]
[1742436922448,0.0001696,85913.0,85912.0,0.002]
[1742436922826,0.0001696,85913.0,85912.0,0.013639]
[1742436924167,0.0001696,85913.0,85911.0,0.011515]
[1742436924351,0.0001696,85913.0,85911.0,0.197752]
[1742436925482,0.0001696,85913.0,85912.0,0.011639]
[1742436926329,0.0001696,85913.0,85912.0,0.011978]
[1742436927051,0.0118086,85913.0,85912.0,0.000339]
[1742436927251,0.02343691,85913.0,85912.0,0.000339]
[1742436927463,0.02433381,85913.0,85912.0,0.000339]
[1742436927615,0.02433381,85913.0,85912.0,0.002339]
[1742436927827,0.04586753,85913.0,85912.0,0.002339]
[1742436928152,0.04586753,85913.0,85912.0,0.000339]
[1742436928527,0.04586753,85913.0,85912.0,0.001339]
[1742436928730,0.02170332,85913.0,85912.0,0.001339]
[1742436928932,0.03423922,85913.0,85912.0,0.000339]
[1742436929309,0.03523922,85913.0,85912.0,0.000339]
[1742436930548,0.02270332,85913.0,85912.0,0.011978]
[1742436930748,0.02270332,85913.0,85912.0,0.198215]
[1742436931711,0.02170332,85913.0,85912.0,0.198215]
[1742436932111,0.02170332,85913.0,85912.0,0.200215]
[1742436932513,0.02170332,85913.0,85912.0,0.000339]
[1742436932933,0.02170332,85913.0,85912.0,0.002339]
[1742436933157,0.03334232,85913.0,85912.0,0.002339]
[1742436933316,0.04586753,85913.0,85912.0,0.002339]
[1742436934281,0.04586753,85913.0,85912.0,0.000339]
[1742436936116,0.34586753,85913.0,85912.0,0.000339]
[1742436936308,0.34497063,85913.0,85912.0,0.000339]
[1742436938639,0.34597063,85913.0,85912.0,0.000339]
[1742436939581,0.02270332,85913.0,85912.0,0.011978]
[1742436939789,0.02270332,85913.0,85912.0,0.198215]
[1742436940816,0.02170332,85913.0,85912.0,0.198215]
[1742436941225,0.0001696,85913.0,85912.0,0.199215]
[1742436941904,0.0001696,85913.0,85912.0,0.41323088]
[1742436942323,0.0001696,85913.0,85912.0,0.41223088]
[1742436942467,0.0001696,85913.0,85912.0,0.71223088]
[1742436942690,0.0001696,85913.0,85912.0,0.76193088]
[1742436942861,0.0001696,85913.0,85912.0,0.76293088]
[1742436943291,0.0001696,85913.0,85912.0,0.76193088]
[1742436943512,0.0011696,85913.0,85912.0,0.76293088]
[1742436944066,0.0011696,85913.0,85912.0,0.76093088]
[1742436944474,0.0021696,85913.0,85912.0,0.76393088]
[1742436944684,0.0011696,85913.0,85912.0,0.76293088]
[1742436944878,0.0001696,85913.0,85912.0,0.75993088]
[1742436945244,0.0011696,85913.0,85912.0,0.76393088]
[1742436945441,0.0011696,85913.0,85912.0,0.44939003]
[1742436945640,0.0011696,85913.0,85912.0,0.32179003]
[1742436946018,0.0021696,85913.0,85912.0,0.32279003]
[1742436947286,0.0021696,85913.0,85912.0,0.33733088]
[1742436949400,0.0021696,85913.0,85912.0,0.32279003]
[1742436950097,0.0021696,85913.0,85912.0,0.335895]
[1742436951031,0.0011696,85913.0,85912.0,0.331895]
[1742436951266,0.0021696,85913.0,85912.0,0.334895]
[1742436951843,0.0011696,85913.0,85912.0,0.331895]
[1742436952263,0.0021696,85913.0,85912.0,0.334895]
[1742436952866,0.0011696,85913.0,85912.0,0.333895]
[1742436953275,0.0021696,85913.0,85912.0,0.334895]
[1742436953679,0.1990426,85913.0,85912.0,0.003339]
[1742436953881,0.2000426,85913.0,85912.0,0.004339]
[1742436954531,0.21156781,85913.0,85912.0,0.001339]
[1742436954730,0.20967091,85913.0,85912.0,0.000339]
[1742436954932,0.20967091,85913.0,85912.0,0.002339]
[1742436956087,0.20967091,85913.0,85912.0,0.003339]
[1742436956316,0.1980426,85913.0,85912.0,0.003339]
[1742436956516,0.0001696,85913.0,85912.0,0.003339]
[1742436957152,0.0001696,85913.0,85912.0,0.002339]
[1742436957675,0.0001696,85913.0,85912.0,0.003339]
[1742436958086,0.0001696,85913.0,85912.0,0.001339]
[1742436958412,0.1864036,85913.0,85912.0,0.002339]
[1742436958784,0.0001696,85913.0,85912.0,0.002339]
[1742436959016,0.0001696,85913.0,85912.0,0.001339]
[1742436959192,0.0001696,85913.0,85912.0,0.002339]
[1742436959416,0.0001696,85913.0,85912.0,0.003339]
[1742436959549,0.1864036,85913.0,85912.0,0.003339]
[1742436959941,0.1980426,85913.0,85912.0,0.003339]
[1742436960565,0.20967091,85913.0,85912.0,0.003339]
[1742436961195,0.20967091,85913.0,85912.0,0.001339]
[1742436961402,0.50967091,85913.0,85912.0,0.001339]
[1742436961666,0.50967091,85913.0,85912.0,0.002339]
[1742436961880,0.52163614,85913.0,85912.0,0.002339]
[1742436962857,0.52163614,85913.0,85912.0,0.001339]
[1742436963357,0.52163614,85913.0,85912.0,0.000339]
[1742436963698,0.52163614,85913.0,85912.0,0.001339]
[1742436964574,0.52163614,85913.0,85912.0,0.000339]
[1742436965216,0.93023614,85913.0,85912.0,0.000339]
[1742436965640,0.91827091,85913.0,85912.0,0.000339]
[1742436965842,0.91827091,85913.0,85912.0,1e-06]
[1742436965843,1.04157091,85913.0,85912.0,1e-06]
[1742436966048,1.05611176,85913.0,85912.0,1e-06]
[1742436966263,1.05611176,85913.0,85901.0,0.00242693]
[1742436966264,0.58853985,85902.0,85898.0,2.3e-07]
[1742436966474,0.52454939,85899.0,85898.0,4.192e-05]
[1742436966679,0.60064939,85899.0,85898.0,4.192e-05]
[1742436967819,0.63547979,85899.0,85898.0,4.192e-05]
[1742436968257,0.60564939,85899.0,85898.0,4.192e-05]
[1742436969389,0.61064939,85899.0,85898.0,4.192e-05]
[1742436969998,1.01924939,85899.0,85898.0,4.192e-05]
[1742436970815,1.00470854,85899.0,85898.0,4.192e-05]
[1742436971015,1.13770854,85899.0,85898.0,4.192e-05]
[1742436973612,1.00470854,85899.0,85898.0,4.192e-05]
[1742436973845,1.06152854,85899.0,85898.0,4.192e-05]
[1742436977429,1.15886939,85899.0,85898.0,4.192e-05]
[1742436979889,1.15886939,85899.0,85891.0,0.0011694]
[1742436979890,0.011643,85882.0,85881.0,5.2e-07]
[1742436980103,0.34529098,85882.0,85881.0,5.2e-07]
[1742436980307,0.34439408,85882.0,85881.0,0.00012539]
[1742436980509,0.42009408,85882.0,85881.0,0.00012539]
[1742436980860,0.42476408,85882.0,85881.0,0.00012539]
[1742436981644,0.47366408,85882.0,85881.0,0.00012539]
[1742436982203,0.47366408,85882.0,85881.0,3.9e-07]
[1742436982204,1.18426408,85882.0,85881.0,3.9e-07]
[1742436982403,1.20380493,85882.0,85881.0,3.9e-07]
[1742436983479,1.18226408,85882.0,85881.0,3.9e-07]
[1742436983908,1.18226408,85882.0,85881.0,0.00016989]
[1742436983909,1.05454408,85882.0,85881.0,0.00016989]
[1742436984144,1.06554408,85882.0,85881.0,0.00016989]
[1742436984354,1.06254408,85882.0,85881.0,0.00016989]
[1742436984776,1.06754408,85882.0,85881.0,0.00016989]
[1742436985107,1.05754408,85882.0,85881.0,0.00016989]
[1742436985314,1.06254408,85882.0,85881.0,0.00016989]
[1742436985540,0.51167408,85882.0,85881.0,0.00016989]
[1742436986036,0.51867408,85882.0,85881.0,0.00016989]
[1742436986675,0.51567408,85882.0,85881.0,0.00016989]
[1742436987189,0.51667408,85882.0,85881.0,0.00016989]
[1742436987618,0.51267408,85882.0,85881.0,0.00016989]
[1742436987831,0.003,85882.0,85881.0,0.00016989]
[1742436988244,0.02926898,85882.0,85881.0,0.00016989]
[1742436990071,0.32926898,85882.0,85881.0,0.00016989]
[1742436990220,0.32837208,85882.0,85881.0,0.00016989]
[1742436991490,0.32637208,85882.0,85881.0,0.00016989]
[1742436991838,0.32837208,85882.0,85881.0,0.00016989]
[1742436992044,0.33935595,85882.0,85881.0,0.00016989]
[1742436992386,0.34135595,85882.0,85881.0,0.00016989]
[1742436995459,0.32937208,85882.0,85881.0,0.00016989]
[1742436996239,0.32537208,85882.0,85881.0,0.00016989]
[1742436996632,0.32637208,85882.0,85881.0,0.00016989]
[1742436997768,0.32837208,85882.0,85881.0,0.00016989]
[1742436999759,0.32637208,85882.0,85881.0,0.00016989]
[1742436999958,0.32537208,85882.0,85881.0,0.00016989]
[1742437000169,0.32737208,85882.0,85881.0,0.00016989]
[1742437000382,0.73597208,85882.0,85881.0,0.00016989]
[1742437000587,0.74778194,85882.0,85881.0,0.00016989]
[1742437001195,0.74978194,85882.0,85881.0,0.00016989]
[1742437002873,0.79808194,85882.0,85881.0,0.00016989]
[1742437005398,0.79808194,85882.0,85850.0,0.1326]
[1742437005399,0.011646,85863.0,85850.0,0.078]
[1742437005597,0.02760199,85863.0,85850.0,0.078]
[1742437006261,0.51394499,85863.0,85850.0,0.078]
[1742437006475,0.51304809,85863.0,85850.0,0.078]
[1742437006687,4.17e-05,85863.0,85851.0,0.00116478]
[1742437006902,4.17e-05,85863.0,85859.0,0.18635]
[1742437007095,0.0116877,85863.0,85855.0,0.198007]
[1742437009667,4.17e-05,85863.0,85855.0,0.011647]
[1742437009910,4.17e-05,85863.0,85861.0,0.189345]
[1742437010114,4.17e-05,85863.0,85862.0,0.0119848]
[1742437010447,4.17e-05,85863.0,85862.0,0.0003388]
[1742437011290,0.0116877,85863.0,85862.0,0.0003388]
[1742437015515,0.02670509,85863.0,85862.0,0.0003388]
[1742437015928,0.02760199,85863.0,85862.0,0.0003388]
[1742437016355,0.32760199,85863.0,85862.0,0.0003388]
[1742437016562,0.32670509,85863.0,85862.0,0.0003388]
[1742437017730,0.32770509,85863.0,85862.0,0.0003388]
[1742437021105,0.73630509,85863.0,85862.0,0.0003388]
[1742437023574,0.73530509,85863.0,85862.0,0.0003388]
[1742437024061,0.73630509,85863.0,85862.0,0.0003388]
[1742437026765,0.73530509,85863.0,85862.0,0.0003388]
[1742437026969,0.79147096,85863.0,85862.0,0.0003388]
[1742437027097,0.79247096,85863.0,85862.0,0.0003388]
[1742437027533,0.79147096,85863.0,85862.0,0.0003388]
[1742437027996,0.77356467,85863.0,85862.0,7.105e-05]
[1742437028227,0.75990735,85863.0,85862.0,7.105e-05]
[1742437028478,0.79493335,85863.0,85862.0,7.105e-05]
[1742437028722,0.77533109,85863.0,85862.0,7.105e-05]
[1742437029208,0.79693202,85863.0,85862.0,7.105e-05]
[1742437031214,0.8104247,85863.0,85862.0,7.105e-05]
[1742437031446,0.74873531,85863.0,85862.0,7.105e-05]
[1742437031621,1.74873531,85863.0,85862.0,7.105e-05]
[1742437032028,1.94672431,85863.0,85862.0,7.105e-05]
[1742437032634,1.53812431,85863.0,85862.0,7.105e-05]
[1742437032850,1.52263163,85863.0,85862.0,7.105e-05]
[1742437033406,1.22263163,85863.0,85862.0,7.105e-05]
[1742437034071,1.02164263,85863.0,85862.0,7.105e-05]
[1742437034305,1.05621949,85863.0,85862.0,0.06111705]
[1742437034542,1.05621949,85863.0,85862.0,0.04947105]
[1742437034774,1.25420849,85863.0,85862.0,0.04947105]
[1742437035003,1.25420849,85863.0,85862.0,7.105e-05]
[1742437035652,1.56922588,85863.0,85862.0,7.105e-05]
[1742437036154,1.58285902,85863.0,85862.0,7.105e-05]
[1742437037457,1.58385902,85863.0,85862.0,7.105e-05]
[1742437037882,1.07085263,85863.0,85862.0,7.105e-05]
[1742437038545,1.07085263,85863.0,85862.0,0.01171705]
[1742437038952,1.06985263,85863.0,85862.0,0.01171705]
[1742437039178,1.06985263,85863.0,85862.0,7.105e-05]
[1742437040463,1.03527577,85863.0,85862.0,7.105e-05]
[1742437040763,1.02164263,85863.0,85862.0,7.105e-05]
[1742437043398,1.05625158,85863.0,85862.0,7.105e-05]
[1742437043801,1.05659058,85863.0,85862.0,0.19806205]
[1742437044650,1.05659058,85863.0,85862.0,0.24656205]
[1742437049397,1.05659058,85863.0,85862.0,7.105e-05]
[1742437049598,1.26959697,85863.0,85862.0,7.105e-05]
[1742437050678,1.56959697,85863.0,85862.0,7.105e-05]
[1742437051054,1.57059697,85863.0,85862.0,7.105e-05]
[1742437052543,1.57059697,85863.0,85862.0,0.18641605]
[1742437052544,1.05759058,85863.0,85862.0,0.18641605]
[1742437052744,1.03598965,85863.0,85862.0,0.27326205]
[1742437052956,1.0013807,85863.0,85862.0,0.27326205]
[1742437053723,1.0003807,85863.0,85862.0,0.27326205]
[1742437055479,1.0003807,85863.0,85862.0,0.26161605]
[1742437057829,1.01221474,85863.0,85862.0,7.105e-05]
[1742437058030,1.02386074,85863.0,85862.0,7.105e-05]
[1742437059665,1.03887813,85863.0,85862.0,7.105e-05]
[1742437059857,1.05230987,85863.0,85862.0,7.105e-05]
[1742437060062,1.35230987,85863.0,85862.0,7.105e-05]
[1742437060433,1.35230987,85863.0,85861.0,0.003]
[1742437060434,0.497991,85862.0,85861.0,0.003]
[1742437060635,0.51307621,85862.0,85861.0,0.003]
[1742437061524,0.51307621,85862.0,85861.0,0.00071339]
[1742437061667,0.51607621,85862.0,85861.0,0.00071339]
[1742437063402,0.92467621,85862.0,85861.0,0.00071339]
[1742437063702,0.92867621,85862.0,85861.0,0.00071339]
[1742437065742,0.96370521,85862.0,85861.0,0.00071339]
[1742437066782,0.198037,85842.0,85841.0,1e-06]
[1742437067283,0.1989339,85842.0,85841.0,1e-06]
[1742437067486,0.21537586,85842.0,85841.0,1e-06]
[1742437067711,0.21447896,85842.0,85841.0,1e-06]
[1742437068055,0.011647,85857.0,85844.0,0.011649]
[1742437068254,0.011647,85857.0,85849.0,0.011648]
[1742437068255,0.01589918,85854.0,85849.0,0.011648]
[1742437068440,0.198023,85849.0,85843.0,0.186385]
[1742437068820,0.186367,85852.0,85847.0,0.186376]
[1742437068975,0.011648,85851.0,85845.0,0.011648]
[1742437069542,0.198014,85852.0,85845.0,0.011648]
[1742437069734,0.198019,85851.0,85846.0,0.186378]
[1742437069951,0.011648,85850.0,85844.0,0.011649]
[1742437070223,0.011648,85846.0,85839.0,0.093749]
[1742437070639,0.186384,85844.0,85839.0,0.0821]
[1742437070894,0.011648,85845.0,85841.0,1e-06]
[1742437072453,0.198033,85844.0,85841.0,1e-06]
[1742437072681,0.011649,85842.0,85841.0,1e-06]
[1742437073059,0.02809096,85842.0,85841.0,1e-06]
[1742437073463,0.01644196,85842.0,85841.0,0.0001705]
[1742437073669,0.311648,85847.0,85842.0,0.186388]
[1742437073891,0.186388,85843.0,85841.0,0.0001705]
[1742437074089,0.198037,85843.0,85841.0,0.0001705]
[1742437074494,0.311648,85847.0,85842.0,0.186387]
[1742437074691,0.011648,85850.0,85842.0,0.186387]
[1742437074692,0.198022,85849.0,85843.0,0.186385]
[1742437074918,0.02778464,85848.0,85841.0,0.0001705]
[1742437075091,0.3,85850.0,85841.0,0.0001705]
[1742437075273,0.198027,85847.0,85841.0,0.0001705]
[1742437075511,0.011649,85842.0,85841.0,0.0001705]
[1742437076843,0.0125459,85842.0,85841.0,0.0001705]
[1742437077460,0.02898786,85842.0,85841.0,0.0001705]
[1742437077697,0.32898786,85842.0,85841.0,0.0001705]
[1742437077881,0.32809096,85842.0,85841.0,5e-07]
[1742437078442,0.32809096,85842.0,85833.0,0.09298939]
[1742437078443,0.498056,85834.0,85833.0,0.09298939]
[1742437078717,0.51504085,85834.0,85833.0,3.9e-07]
[1742437078926,0.51504085,85834.0,85815.0,0.1332192]
[1742437078927,0.3,85821.0,85815.0,5.9e-07]
[1742437079038,0.198097,85816.0,85815.0,5.9e-07]
[1742437079248,0.21720061,85816.0,85815.0,5.9e-07]
[1742437079460,0.51630371,85816.0,85815.0,5.9e-07]
[1742437079659,0.5164287,85816.0,85815.0,5.9e-07]
[1742437080154,0.5974287,85816.0,85815.0,5.9e-07]
[1742437080837,0.5164287,85816.0,85815.0,5.9e-07]
[1742437081220,0.00012499,85816.0,85815.0,0.18644759]
[1742437081378,0.19822199,85816.0,85815.0,5.9e-07]
[1742437081580,0.00212499,85816.0,85815.0,0.19809959]
[1742437081824,0.00212499,85816.0,85815.0,0.19926474]
[1742437082265,0.00012499,85816.0,85815.0,0.19926474]
[1742437082467,0.00112499,85816.0,85815.0,0.19926474]
[1742437082689,0.00112499,85816.0,85815.0,0.40473977]
[1742437082895,0.00112499,85816.0,85815.0,0.59213547]
[1742437083293,0.00112499,85816.0,85815.0,0.57759462]
[1742437084362,0.00012499,85816.0,85815.0,0.57759462]
[1742437084563,0.00112499,85816.0,85815.0,0.59213547]
[1742437085175,0.00112499,85816.0,85815.0,0.59713547]
[1742437085739,0.00212499,85816.0,85815.0,0.59713547]
[1742437086488,0.00212499,85816.0,85815.0,0.59213547]
[1742437086734,0.00212499,85816.0,85815.0,0.59713547]
[1742437089638,0.00212499,85816.0,85815.0,0.89713547]
[1742437090671,0.00212499,85816.0,85815.0,0.89705547]
[1742437091298,0.00212499,85816.0,85815.0,0.25233503]
[1742437091707,0.00212499,85816.0,85815.0,0.43878203]
[1742437092109,0.00212499,85816.0,85815.0,0.45043403]
[1742437094397,0.00212499,85816.0,85815.0,0.52733403]
[1742437096160,0.00212499,85816.0,85815.0,0.54187488]
[1742437096373,9.9e-07,85816.0,85815.0,0.54187488]
[1742437096590,9.9e-07,85816.0,85815.0,1.03094448]
[1742437096997,1.9e-07,85816.0,85815.0,1.03094448]
[1742437097613,0.005,85856.0,85851.0,0.186367]
[1742437097822,0.00512557,85856.0,85853.0,0.186363]
[1742437098037,0.005,85852.0,85850.0,0.011648]
[1742437098884,0.00012557,85856.0,85855.0,0.011647]
[1742437101165,0.00012557,85856.0,85855.0,0.013647]
[1742437101730,0.00012557,85856.0,85855.0,0.015647]
[1742437105417,0.00012557,85856.0,85855.0,0.13522203]
[1742437105647,0.00012557,85856.0,85855.0,0.13322203]
[1742437106048,0.00012557,85856.0,85855.0,0.13538658]
[1742437106450,0.00012557,85856.0,85855.0,0.13838658]
[1742437106646,0.00012557,85856.0,85855.0,0.13538658]
[1742437106926,0.00012557,85856.0,85855.0,0.18248658]
[1742437107111,0.00012557,85856.0,85855.0,0.18648658]
[1742437107960,0.00012557,85856.0,85855.0,0.18348658]
[1742437108191,1.00012557,85856.0,85855.0,0.18748658]
[1742437108388,1.00012557,85856.0,85855.0,0.18232203]
[1742437108535,1.00012557,85856.0,85855.0,0.17832203]
[1742437108732,0.19568857,85856.0,85855.0,0.20386288]